fUSD/lending_fUSD_20250804
["ID","MTS","AMOUNT","RATE_DAILY","PERIOD"]
[377248946,1754306536033,-1011.9,0.00044383,120]
[377248947,1754306536070,-478.01,0.00044383,120]
[377248948,1754306536104,-764.15,0.00044383,120]
[377248949,1754306536140,-1004.29,0.00044383,120]
[377248950,1754306536171,-675.14,0.00044383,120]
[377248951,1754306536202,-1585.13,0.00044383,120]
[377248952,1754306536232,-1306.53,0.00044383,120]
[377248953,1754306536263,-542.26,0.00044383,120]
[377248954,1754306536297,-828.24,0.00044383,120]
[377248955,1754306536328,-722.44,0.00044383,120]
[377248956,1754306536359,-906.14,0.00044383,120]
[377248957,1754306536390,-993.97,0.00044383,120]
[377248958,1754306536422,-453.14,0.00044383,120]
[377248959,1754306536453,-477.07,0.00044383,120]
[377248960,1754306536491,-528.28,0.00044383,120]
[377248961,1754306536522,-624.91,0.00044383,120]
[377248962,1754306536553,-451.78,0.00044383,120]
[377248963,1754306536586,-846.48,0.00044383,120]
[377248964,1754306536618,-491.69,0.00044383,120]
[377248965,1754306536649,-969.07,0.00044383,120]
[377248966,1754306536681,-400.0,0.00044383,120]
[377248967,1754306536712,-707.13,0.00044383,120]
[377248968,1754306536744,-898.53,0.00044383,120]
[377248969,1754306536775,-950.76,0.00044383,60]
[377248970,1754306536814,-544.91,0.00044383,120]
[377248971,1754306536849,-755.23,0.00044383,120]
[377248972,1754306536883,-861.69,0.00044383,120]
[377248973,1754306536915,-646.8,0.00044383,120]
[377248974,1754306536945,-860.25,0.00044383,120]
[377248975,1754306536977,-787.94,0.00044383,120]
[377248976,1754306537008,-765.37,0.00044383,120]
[377248977,1754306537040,-561.99,0.00044383,120]
[377248978,1754306537077,-631.68,0.00044383,120]
[377248979,1754306537107,-558.58,0.00044383,120]
[377248980,1754306537138,-2018.7,0.00044383,120]
[377248981,1754306537167,-844.94,0.00044383,120]
[377248982,1754306537197,-1240.61,0.00044383,120]
[377248983,1754306537227,-708.25,0.00044383,120]
[377248984,1754306537258,-602.57,0.00044383,120]
[377248985,1754306537290,-2486.25,0.00044383,120]
[377248986,1754306537320,-1258.69,0.00044383,120]
[377248987,1754306537350,-841.37,0.00044383,120]
[377248988,1754306537380,-544.2,0.00044383,120]
[377248989,1754306537412,-400.12,0.00044383,120]
[377248990,1754306537444,-780.47,0.00044383,120]
[377248991,1754306537655,-771.24,0.00044383,120]
[377248992,1754306537689,-1105.39,0.00044383,120]
[377248993,1754306537723,-1192.46,0.00044383,120]
[377248994,1754306537756,-741.79,0.00044383,120]
[377248995,1754306537789,-976.72,0.00044383,120]
[377248996,1754306537823,-1461.87,0.00044383,120]
[377248997,1754306537855,-819.24,0.00044383,120]
[377248998,1754306537887,-873.02,0.00044383,120]
[377248999,1754306537920,-682.78,0.00044383,120]
[377249000,1754306537952,-2570.9,0.00044383,120]
[377249001,1754306537984,-497.63139785,0.00044383,120]
[377249002,1754306538017,-1261.3,0.00044383,120]
[377249003,1754306538049,-481.57,0.00044383,120]
[377249004,1754306538083,-1543.68,0.00044383,120]
[377249005,1754306538116,-1024.03,0.00044383,120]
[377249006,1754306538148,-1515.84,0.00044383,120]
[377249007,1754306538180,-1205.46,0.00044383,120]
[377249008,1754306538212,-522.75,0.00044383,120]
[377249009,1754306538245,-896.46,0.00044383,120]
[377249010,1754306538278,-1369.19,0.00044383,120]
[377249011,1754306538312,-884.82,0.00044383,120]
[377249012,1754306538346,-3174.41,0.00044383,120]
[377249013,1754306538379,-862.79,0.00044383,120]
[377249014,1754306538414,-955.83,0.00044383,120]
[377249015,1754306538448,-1839.81,0.00044383,120]
[377249016,1754306538484,-1831.16,0.00044383,120]
[377249017,1754306538517,-1796.51,0.00044383,120]
[377249018,1754306538551,-1213.41,0.00044383,120]
[377249019,1754306538583,-1175.01,0.00044383,120]
[377249020,1754306538616,-1695.82,0.00044383,120]
[377249021,1754306538649,-1288.77,0.00044383,120]
[377249022,1754306538683,-1360.54,0.00044383,120]
[377249023,1754306538716,-1912.8,0.00044383,120]
[377249024,1754306538750,-1992.06,0.00044383,120]
[377249025,1754306538782,-400.92,0.00044383,120]
[377249026,1754306538816,-445.94,0.00044383,120]
[377249027,1754306538850,-752.66,0.00044383,120]
[377249028,1754306538883,-470.47,0.00044383,120]
[377249029,1754306538916,-711.02,0.00044383,120]
[377249030,1754306538949,-1734.6,0.00044383,120]
[377249031,1754306538982,-463.59,0.00044383,120]
[377249032,1754306539015,-2162.34,0.00044383,120]
[377249033,1754306539050,-1867.31,0.00044383,120]
[377249034,1754306539083,-205.81617672,0.00044383,120]
[377249035,1754306539117,-1240.53,0.00044383,120]
[377249036,1754306539149,-1940.12,0.00044383,120]
[377249037,1754306539182,-1627.99,0.00044383,120]
[377249038,1754306539214,-1177.05,0.00044383,120]
[377249039,1754306539246,-1664.01,0.00044383,120]
[377249040,1754306539278,-646.41,0.00044383,120]
[377249041,1754306539311,-176.97727201,0.00044383,120]
[377249042,1754306539343,-485.4547821,0.00044383,120]
[377249043,1754306539373,-1393.11,0.00044383,120]
[377249044,1754306539407,-1212.17,0.00044383,120]
[377249045,1754306539438,-1143.62,0.00044383,120]
[377249046,1754306539469,-1688.91,0.00044383,120]
[377249047,1754306539500,-2438.44,0.00044383,120]
[377249048,1754306539531,-582.58,0.00044383,120]
[377249049,1754306539564,-1285.51,0.00044383,120]
[377249050,1754306539595,-1757.46,0.00044383,120]
[377249051,1754306539627,-715.2,0.00044383,120]
[377249052,1754306539658,-664.08,0.00044383,120]
[377249053,1754306539690,-855.75,0.00044383,120]
[377249054,1754306539722,-1384.01,0.00044383,120]
[377249055,1754306539754,-527.64,0.00044383,120]
[377249056,1754306539786,-589.57,0.00044383,120]
[377249057,1754306539820,-869.96,0.00044383,120]
[377249058,1754306539851,-1068.88,0.00044383,120]
[377249059,1754306539883,-1992.32,0.00044383,120]
[377249060,1754306539914,-615.92,0.00044383,120]
[377249061,1754306539945,-7646.84,0.00044383,120]
[377249062,1754306539977,-8594.29,0.00044383,120]
[377249063,1754306540008,-1726.83,0.00044383,120]
[377249064,1754306540040,-719.27,0.00044383,120]
[377249065,1754306540071,-1417.99,0.00044383,120]
[377249066,1754306540102,-1557.01,0.00044383,120]
[377249067,1754306540133,-922.56,0.00044383,120]
[377249068,1754306540163,-1352.45,0.00044383,120]
[377249069,1754306540194,-1617.85,0.00044383,120]
[377249070,1754306540224,-1049.13,0.00044383,120]
[377249071,1754306540256,-1275.21,0.00044383,120]
[377249072,1754306540288,-1850.44,0.00044383,120]
[377249073,1754306540319,-3372.73,0.00044383,120]
[377249074,1754306540350,-2413.24,0.00044383,120]
[377249075,1754306540686,-462.58,0.00044383,120]
[377249076,1754306540718,-1367.05,0.00044383,120]
[377249077,1754306540751,-3347.26,0.00044383,120]
[377249078,1754306540783,-533.4616788,0.00044383,120]
[377249079,1754306540817,-1737.5,0.00044383,120]
[377249080,1754306540848,-792.56,0.00044383,120]
[377249081,1754306540879,-482.37,0.00044383,120]
[377249082,1754306540909,-1101.08,0.00044383,120]
[377249083,1754306540941,-1034.76,0.00044383,120]
[377249084,1754306540972,-848.03,0.00044383,120]
[377249085,1754306541003,-1266.69,0.00044383,120]
[377249086,1754306541034,-530.71,0.00044383,120]
[377249087,1754306541067,-1473.63,0.00044383,120]
[377249088,1754306541097,-1069.53,0.00044383,120]
[377249089,1754306541128,-2247.29,0.00044383,120]
[377249090,1754306541159,-4477.57,0.00044383,120]
[377249091,1754306541189,-1968.62,0.00044383,120]
[377249092,1754306541223,-3404.85,0.00044383,120]
[377249093,1754306541252,-2083.77,0.00044383,120]
[377249094,1754306541285,-1810.06,0.00044383,120]
[377249095,1754306541319,-2468.29,0.00044383,120]
[377249096,1754306541352,-1201.96,0.00044383,120]
[377249097,1754306541386,-1858.5,0.00044383,120]
[377249098,1754306541418,-503.95,0.00044383,120]
[377249099,1754306541450,-4807.7,0.00044383,120]
[377249100,1754306541483,-492.49529115,0.00044383,120]
[377249101,1754306541515,-6521.48,0.00044383,120]
[377249102,1754306541546,-489.8,0.00044383,120]
[377249103,1754306541578,-408.05,0.00044383,120]
[377249104,1754306541609,-291.94580634,0.00044383,120]
[377249105,1754306541642,-1932.33,0.00044383,120]
[377249106,1754306541675,-13551.98,0.00044383,120]
[377249107,1754306541707,-1962.49,0.00044383,120]
[377249108,1754306541741,-1956.19,0.00044383,120]
[377249109,1754306541774,-5941.99,0.00044383,120]
[377249110,1754306541807,-633.55,0.00044383,120]
[377249111,1754306541840,-3223.77,0.00044383,120]
[377249112,1754306541873,-597.5,0.00044383,120]
[377249113,1754306541904,-667.04,0.00044383,120]
[377249114,1754306541936,-2158.98,0.00044383,120]
[377249115,1754306541969,-1701.62,0.00044383,120]
[377249116,1754306542001,-6788.37,0.00044383,120]
[377249117,1754306542033,-1510.11,0.00044383,120]
[377249118,1754306542065,-1888.16,0.00044383,120]
[377249119,1754306542095,-2404.75,0.00044383,120]
[377249120,1754306542126,-8266.69,0.00044383,120]
[377249121,1754306542156,-1987.23,0.00044383,120]
[377249122,1754306542185,-676.97,0.00044383,120]
[377249123,1754306542215,-949.12,0.00044383,120]
[377249124,1754306542244,-2500.38,0.00044383,120]
[377249125,1754306542274,-3084.99,0.00044383,120]
[377249126,1754306542304,-673.78,0.00044383,120]
[377249127,1754306542334,-2548.22,0.00044383,120]
[377249128,1754306542365,-3541.77,0.00044383,120]
[377249129,1754306542397,-1188.87,0.00044383,120]
[377249130,1754306542428,-508.94,0.00044383,120]
[377249131,1754306542459,-590.95,0.00044383,120]
[377249132,1754306542490,-995.62,0.00044383,120]
[377249133,1754306542520,-1487.14,0.00044383,120]
[377249134,1754306542551,-2691.96,0.00044383,120]
[377249135,1754306542582,-2381.9,0.00044383,120]
[377249136,1754306542612,-2413.42,0.00044383,120]
[377249137,1754306542643,-4614.34,0.00044383,120]
[377249138,1754306542674,-2267.73,0.00044383,120]
[377249139,1754306542704,-2667.37,0.00044383,120]
[377249140,1754306542735,-1791.84,0.00044383,120]
[377249141,1754306542854,-1827.5,0.00044383,120]
[377249142,1754306542884,-568.78,0.00044383,120]
[377249143,1754306542916,-797.66,0.00044383,120]
[377249144,1754306542945,-1375.84,0.00044383,120]
[377249145,1754306542975,-1303.69,0.00044383,120]
[377249146,1754306543004,-1662.7,0.00044383,120]
[377249147,1754306543034,-2217.64,0.00044383,120]
[377249148,1754306543064,-1643.13,0.00044383,120]
[377249149,1754306543095,-421.46,0.00044383,120]
[377249150,1754306543125,-5728.66,0.00044383,120]
[377249151,1754306543155,-1365.06,0.00044383,120]
[377249152,1754306543184,-1940.39,0.00044383,120]
[377249153,1754306543213,-916.27,0.00044383,120]
[377249154,1754306543241,-1555.63,0.00044383,120]
[377249155,1754306543270,-952.93,0.00044383,120]
[377249156,1754306543299,-1561.03,0.00044383,120]
[377249157,1754306543331,-1682.25,0.00044383,120]
[377249158,1754306543361,-4041.7,0.00044383,120]
[377249159,1754306543392,-681.74,0.00044383,120]
[377249160,1754306543421,-753.55,0.00044383,120]
[377249161,1754306543451,-994.43,0.00044383,120]
[377249162,1754306543481,-3172.76,0.00044383,120]
[377249163,1754306543510,-3111.11,0.00044383,120]
[377249164,1754306543539,-1679.47,0.00044383,120]
[377249165,1754306543570,-1270.32,0.00044383,120]
[377249166,1754306543601,-469.66,0.00044383,120]
[377249167,1754306543633,-1541.62,0.00044383,120]
[377249168,1754306543664,-400.0,0.00044383,120]
[377249169,1754306543694,-3319.51,0.00044383,120]
[377249170,1754306543725,-2263.83,0.00044383,120]
[377249171,1754306543757,-495.94,0.00044383,120]
[377249172,1754306543788,-2509.47,0.00044383,120]
[377249173,1754306543819,-1990.45,0.00044383,120]
[377249174,1754306543848,-605.16,0.00044383,120]
[377249175,1754306543878,-718.33,0.00044383,120]
[377249176,1754306543907,-234.12501187,0.00044383,120]
[377249177,1754306543939,-1568.27,0.00044383,120]
[377249178,1754306543978,-4024.2,0.00044383,120]
[377249179,1754306544013,-1607.54,0.00044383,120]
[377249180,1754306544045,-1497.99,0.00044383,120]
[377249181,1754306544073,-1029.57,0.00044383,120]
[377249182,1754306544103,-1880.05,0.00044383,120]
[377249183,1754306544133,-2071.43,0.00044383,120]
[377249184,1754306544164,-2736.35,0.00044383,120]
[377249185,1754306544192,-1863.23,0.00044383,120]
[377249186,1754306544221,-1402.16,0.00044383,120]
[377249187,1754306544250,-519.5,0.00044383,120]
[377249188,1754306544281,-1001.01,0.00044383,120]
[377249189,1754306544310,-6384.69,0.00044383,120]
[377249190,1754306544340,-1568.88,0.00044383,120]
[377249191,1754306544369,-1290.6,0.00044383,120]
[377249192,1754306544399,-2091.85,0.00044383,120]
[377249194,1754306544429,-980.14,0.00044383,120]
[377249195,1754306544460,-2142.0,0.00044383,120]
[377249196,1754306544490,-1146.32,0.00044383,120]
[377249197,1754306544520,-2149.98,0.00044383,120]
[377249198,1754306544550,-445.44,0.00044383,120]
[377249199,1754306544582,-2683.34,0.00044383,120]
[377249200,1754306544612,-1580.71,0.00044383,120]
[377249201,1754306544642,-589.85,0.00044383,120]
[377249202,1754306544672,-178.01874752,0.00044383,120]
[377249203,1754306544702,-1625.1,0.00044383,120]
[377249204,1754306544736,-1328.71,0.00044383,120]
[377249205,1754306544767,-1405.66,0.00044383,120]
[377249206,1754306544798,-3167.75,0.00044383,120]
[377249207,1754306544828,-2014.45,0.00044383,120]
[377249208,1754306544857,-586.64,0.00044383,120]
[377249209,1754306544887,-5175.72,0.00044383,120]
[377249210,1754306544918,-1391.91,0.00044383,120]
[377249211,1754306544947,-4476.5,0.00044383,120]
[377249212,1754306544977,-1104.52,0.00044383,120]
[377249213,1754306545007,-1737.45,0.00044383,120]
[377249214,1754306545040,-2248.87,0.00044383,120]
[377249215,1754306545069,-636.35,0.00044383,120]
[377249216,1754306545098,-1517.37,0.00044383,120]
[377249217,1754306545127,-436.1,0.00044383,120]
[377249218,1754306545156,-1733.65,0.00044383,120]
[377249219,1754306545185,-2109.62,0.00044383,120]
[377249220,1754306545214,-3263.75,0.00044383,120]
[377249221,1754306545242,-1329.24,0.00044383,120]
[377249222,1754306545271,-29546.07,0.00044383,120]
[377249223,1754306545299,-1083.17,0.00044383,120]
[377249224,1754306545332,-1234.35,0.00044383,120]
[377249225,1754306545360,-451.40847268,0.00044383,120]
[377249226,1754306545390,-6168.18,0.00044383,120]
[377249227,1754306545418,-644.79,0.00044383,60]
[377249228,1754306545448,-3988.18,0.00044383,120]
[377249229,1754306545477,-468.62,0.00044383,120]
[377249230,1754306545506,-1241.95,0.00044383,120]
[377249231,1754306545535,-859.615558,0.00044383,120]
[377249232,1754306545566,-1127.15,0.00044383,120]
[377249233,1754306545598,-1315.13,0.00044383,14]
[377249234,1754306545627,-1319.78,0.00044383,120]
[377249235,1754306545659,-550.876965,0.00044383,120]
[377249236,1754306545694,-701.03,0.00044383,120]
[377249237,1754306545897,-1025.95,0.00044383,120]
[377249238,1754306545929,-3654.39,0.00044383,120]
[377249239,1754306545960,-650.99,0.00044383,120]
[377249240,1754306545990,-6352.59,0.00044383,120]
[377249241,1754306546021,-992.4,0.00044383,120]
[377249242,1754306546050,-1071.98,0.00044383,120]
[377249243,1754306546080,-452.76,0.00044383,120]
[377249244,1754306546112,-687.27,0.00044383,120]
[377249245,1754306546141,-238.87963809,0.00044383,120]
[377249246,1754306546171,-889.39,0.00044383,120]
[377249247,1754306546200,-878.355385,0.00044383,120]
[377249248,1754306546230,-534.51,0.00044383,120]
[377249249,1754306546258,-2654.68,0.00044383,120]
[377249250,1754306546288,-892.92,0.00044383,120]
[377249251,1754306546317,-811.05,0.00044383,120]
[377249252,1754306546347,-400.0,0.00044383,120]
[377249253,1754306546376,-558.56,0.00044383,120]
[377249254,1754306546409,-528.53,0.00044383,118]
[377249255,1754306546443,-628.82,0.00044383,120]
[377249256,1754306546476,-293.53544314,0.0004439,120]
[377249257,1754306546506,-336.39365751,0.000444,33]
[377249258,1754306546537,-6717.4396,0.00044465,14]
[377249259,1754306546568,-2110.0,0.00044465,30]
[377249260,1754306546599,-500.0,0.00044552,120]
[377249261,1754306546630,-500.0,0.00044552,120]
[377249262,1754306546660,-500.0,0.00044552,120]
[377249263,1754306546690,-500.0,0.00044552,120]
[377249264,1754306546722,-500.0,0.00044552,120]
[377249265,1754306546761,-500.0,0.00044552,120]
[377249266,1754306546794,-500.0,0.00044552,120]
[377249267,1754306546829,-500.0,0.00044552,120]
[377249268,1754306546861,-500.0,0.00044552,120]
[377249269,1754306546894,-500.0,0.00044552,120]
[377249270,1754306546926,-500.0,0.00044552,120]
[377249271,1754306546959,-500.0,0.00044552,120]
[377249272,1754306546991,-500.0,0.00044552,120]
[377249273,1754306547022,-500.0,0.00044552,120]
[377249274,1754306547051,-500.0,0.00044552,120]
[377249275,1754306547080,-500.0,0.00044552,120]
[377249276,1754306547109,-500.0,0.00044552,120]
[377249277,1754306547138,-500.0,0.00044552,120]
[377249278,1754306547167,-500.0,0.00044552,120]
[377249279,1754306547196,-500.0,0.00044552,120]
[377249280,1754306547225,-500.0,0.00044552,120]
[377249281,1754306547256,-500.0,0.00044552,120]
[377249282,1754306547285,-500.0,0.00044552,120]
[377249283,1754306547314,-500.0,0.00044552,120]
[377249284,1754306547343,-500.0,0.00044552,120]
[377249285,1754306547372,-500.0,0.00044552,120]
[377249286,1754306547403,-500.0,0.00044552,120]
[377249287,1754306547435,-500.0,0.00044552,120]
[377249288,1754306547466,-500.0,0.00044552,120]
[377249289,1754306547496,-500.0,0.00044552,120]
[377249290,1754306547525,-500.0,0.00044552,120]
[377249291,1754306547554,-500.0,0.00044552,120]
[377249292,1754306547584,-500.0,0.00044552,120]
[377249293,1754306547613,-500.0,0.00044552,120]
[377249294,1754306547644,-500.0,0.00044552,120]
[377249295,1754306547673,-500.0,0.00044552,120]
[377249296,1754306547706,-500.0,0.00044552,120]
[377249297,1754306547737,-500.0,0.00044552,120]
[377249298,1754306547770,-500.0,0.00044552,120]
[377249299,1754306547802,-500.0,0.00044552,120]
[377249300,1754306547833,-500.0,0.00044552,120]
[377249301,1754306547864,-500.0,0.00044552,120]
[377249302,1754306547894,-500.0,0.00044552,120]
[377249303,1754306547923,-500.0,0.00044552,120]
[377249304,1754306547952,-500.0,0.00044552,120]
[377249305,1754306547983,-500.0,0.00044552,120]
[377249306,1754306548013,-500.0,0.00044552,120]
[377249307,1754306548043,-500.0,0.00044552,120]
[377249308,1754306548074,-500.0,0.00044552,120]
[377249309,1754306548103,-500.0,0.00044552,120]
[377249310,1754306548132,-500.0,0.00044552,120]
[377249311,1754306548161,-500.0,0.00044552,120]
[377249312,1754306548191,-500.0,0.00044552,120]
[377249313,1754306548221,-500.0,0.00044552,120]
[377249314,1754306548253,-500.0,0.00044552,120]
[377249315,1754306548284,-500.0,0.00044552,120]
[377249316,1754306548315,-500.0,0.00044552,120]
[377249317,1754306548345,-500.0,0.00044552,120]
[377249318,1754306548375,-500.0,0.00044552,120]
[377249319,1754306548408,-500.0,0.00044552,120]
[377249320,1754306548439,-500.0,0.00044552,120]
[377249321,1754306548470,-500.0,0.00044552,120]
[377249322,1754306548836,-500.0,0.00044552,120]
[377249323,1754306548872,-500.0,0.00044552,120]
[377249324,1754306548905,-500.0,0.00044552,120]
[377249325,1754306548937,-500.0,0.00044552,120]
[377249326,1754306548968,-500.0,0.00044552,120]
[377249327,1754306548998,-500.0,0.00044552,120]
[377249328,1754306549028,-500.0,0.00044552,120]
[377249329,1754306549058,-500.0,0.00044552,120]
[377249330,1754306549089,-500.0,0.00044552,120]
[377249331,1754306549119,-500.0,0.00044552,120]
[377249332,1754306549147,-500.0,0.00044552,120]
[377249333,1754306549176,-500.0,0.00044552,120]
[377249334,1754306549206,-500.0,0.00044552,120]
[377249335,1754306549235,-500.0,0.00044552,120]
[377249336,1754306549266,-500.0,0.00044552,120]
[377249337,1754306549298,-500.0,0.00044552,120]
[377249338,1754306549328,-500.0,0.00044552,120]
[377249339,1754306549358,-500.0,0.00044552,120]
[377249340,1754306549392,-500.0,0.00044552,120]
[377249341,1754306549423,-500.0,0.00044552,120]
[377249342,1754306549455,-500.0,0.00044552,120]
[377249343,1754306549487,-500.0,0.00044552,120]
[377249344,1754306549520,-500.0,0.00044552,120]
[377249345,1754306549554,-500.0,0.00044552,120]
[377249346,1754306549600,-500.0,0.00044552,120]
[377249347,1754306549633,-500.0,0.00044552,120]
[377249348,1754306549666,-500.0,0.00044552,120]
[377249349,1754306549700,-500.0,0.00044552,120]
[377249350,1754306549736,-500.0,0.00044552,120]
[377249351,1754306549773,-500.0,0.00044552,120]
[377249352,1754306549808,-500.0,0.00044552,120]
[377249353,1754306549842,-500.0,0.00044552,120]
[377249354,1754306549877,-500.0,0.00044552,120]
[377249355,1754306549912,-500.0,0.00044552,120]
[377249356,1754306549946,-500.0,0.00044552,120]
[377249357,1754306549980,-500.0,0.00044552,120]
[377249358,1754306550014,-500.0,0.00044552,120]
[377249359,1754306550049,-500.0,0.00044552,120]
[377249360,1754306550083,-500.0,0.00044552,120]
[377249361,1754306550116,-500.0,0.00044552,120]
[377249362,1754306550149,-500.0,0.00044552,120]
[377249363,1754306550190,-500.0,0.00044552,120]
[377249364,1754306550225,-500.0,0.00044552,120]
[377249366,1754306550260,-500.0,0.00044552,120]
[377249367,1754306550295,-500.0,0.00044552,120]
[377249368,1754306550331,-500.0,0.00044552,120]
[377249369,1754306550367,-500.0,0.00044552,120]
[377249370,1754306550401,-500.0,0.00044552,120]
[377249371,1754306550434,-500.0,0.00044552,120]
[377249372,1754306550468,-500.0,0.00044552,120]
[377249373,1754306550502,-500.0,0.00044552,120]
[377249374,1754306550536,-500.0,0.00044552,120]
[377249375,1754306550572,-500.0,0.00044552,120]
[377249376,1754306550606,-500.0,0.00044552,120]
[377249377,1754306550640,-500.0,0.00044552,120]
[377249378,1754306550676,-500.0,0.00044552,120]
[377249379,1754306550710,-500.0,0.00044552,120]
[377249380,1754306550744,-500.0,0.00044552,120]
[377249381,1754306550780,-500.0,0.00044552,120]
[377249382,1754306550822,-500.0,0.00044552,120]
[377249383,1754306550856,-500.0,0.00044552,120]
[377249384,1754306550892,-500.0,0.00044552,120]
[377249385,1754306550926,-500.0,0.00044552,120]
[377249386,1754306550961,-500.0,0.00044552,120]
[377249387,1754306550994,-500.0,0.00044552,120]
[377249388,1754306551026,-500.0,0.00044552,120]
[377249389,1754306551263,-500.0,0.00044552,120]
[377249390,1754306551298,-500.0,0.00044552,120]
[377249391,1754306551330,-500.0,0.00044552,120]
[377249392,1754306551362,-500.0,0.00044552,120]
[377249393,1754306551394,-500.0,0.00044552,120]
[377249394,1754306551426,-500.0,0.00044552,120]
[377249395,1754306551457,-500.0,0.00044552,120]
[377249396,1754306551493,-500.0,0.00044552,120]
[377249397,1754306551526,-500.0,0.00044552,120]
[377249398,1754306551559,-500.0,0.00044552,120]
[377249399,1754306551594,-500.0,0.00044552,120]
[377249400,1754306551626,-500.0,0.00044552,120]
[377249401,1754306551661,-500.0,0.00044552,120]
[377249402,1754306551695,-500.0,0.00044552,120]
[377249403,1754306551730,-500.0,0.00044552,120]
[377249404,1754306551762,-500.0,0.00044552,120]
[377249405,1754306551795,-500.0,0.00044552,120]
[377249407,1754306551829,-500.0,0.00044552,120]
[377249408,1754306551866,-500.0,0.00044552,120]
[377249409,1754306551901,-500.0,0.00044552,120]
[377249410,1754306551934,-500.0,0.00044552,120]
[377249411,1754306551966,-500.0,0.00044552,120]
[377249412,1754306551998,-500.0,0.00044552,120]
[377249413,1754306552031,-500.0,0.00044552,120]
[377249414,1754306552064,-500.0,0.00044552,120]
[377249415,1754306552097,-500.0,0.00044552,120]
[377249416,1754306552128,-500.0,0.00044552,120]
[377249417,1754306552161,-500.0,0.00044552,120]
[377249418,1754306552194,-500.0,0.00044552,120]
[377249419,1754306552228,-500.0,0.00044552,120]
[377249420,1754306552262,-805.0,0.00044552,120]
[377249421,1754306552296,-500.0,0.00044552,120]
[377249422,1754306552330,-500.0,0.00044552,120]
[377249423,1754306552363,-500.0,0.00044552,120]
[377249424,1754306552395,-500.0,0.00044552,120]
[377249425,1754306552427,-500.0,0.00044552,120]
[377249426,1754306552458,-500.0,0.00044552,120]
[377249427,1754306552489,-500.0,0.00044552,120]
[377249428,1754306552522,-500.0,0.00044552,120]
[377249429,1754306552554,-500.0,0.00044552,120]
[377249430,1754306552590,-500.0,0.00044552,120]
[377249431,1754306552622,-500.0,0.00044552,120]
[377249432,1754306552653,-500.0,0.00044552,120]
[377249433,1754306552685,-500.0,0.00044552,120]
[377249434,1754306552719,-500.0,0.00044552,120]
[377249435,1754306552753,-500.0,0.00044552,120]
[377249436,1754306552788,-500.0,0.00044552,120]
[377249437,1754306552822,-500.0,0.00044552,120]
[377249438,1754306552855,-500.0,0.00044552,120]
[377249439,1754306552889,-500.0,0.00044552,120]
[377249440,1754306552920,-500.0,0.00044552,120]
[377249441,1754306552950,-500.0,0.00044552,120]
[377249442,1754306552988,-500.0,0.00044552,120]
[377249443,1754306553021,-500.0,0.00044552,120]
[377249444,1754306553053,-500.0,0.00044552,120]
[377249445,1754306553085,-500.0,0.00044552,120]
[377249446,1754306553120,-500.0,0.00044552,120]
[377249447,1754306553152,-500.0,0.00044552,120]
[377249448,1754306553184,-500.0,0.00044552,120]